lending/lending_fUSD_20250429
["ID","MTS","AMOUNT","RATE_DAILY","PERIOD"]
[359307939,1745903642618,625.96,0.00038356,30]
[359307940,1745903643460,470.0,0.00038356,30]
[359307941,1745903644678,320.0,0.00038356,30]
[359307942,1745903645496,574.08,0.00038356,30]
[359307943,1745903648480,470.0,0.00038356,30]
[359307944,1745903648961,470.0,0.00038356,30]
[359307946,1745903649731,731.1,0.00038356,30]
[359307947,1745903650123,1287.05,0.00038356,30]
[359307948,1745903651940,470.0,0.00038356,30]
[359307949,1745903652219,861.02,0.00038356,30]
[359307950,1745903652274,470.0,0.00038356,30]
[359307951,1745903655115,470.0,0.00038356,30]
[359307952,1745903655263,573.85,0.00038356,30]
[359307953,1745903656189,1361.86,0.00038356,30]
[359307954,1745903657889,173.83835421,0.00038356,30]
[359307955,1745903658334,470.0,0.00038356,30]
[359307956,1745903659798,470.0,0.00038356,30]
[359307957,1745903660395,470.0,0.00038356,30]
[359307958,1745903661950,551.91006085,0.00038356,30]
[359307959,1745903665388,470.0,0.00038356,30]
[359307960,1745903666780,950.07,0.00038356,30]
[359307961,1745903667187,470.0,0.00038356,30]
[359307962,1745903667540,470.0,0.00038356,30]
[359307963,1745903668713,542.35,0.00038356,30]
[359307964,1745903669995,593.84,0.00038356,30]
[359307965,1745903670184,685.66,0.00038356,30]
[359307966,1745903670345,470.0,0.00038356,30]
[359307967,1745903670598,709.76,0.00038356,30]
[359307968,1745903671212,670.38,0.00038356,30]
[359307969,1745903675133,320.0,0.00038356,30]
[359307970,1745903676035,2797.2,0.00038356,30]
[359307971,1745903676152,400.0,0.00038356,30]
[359307972,1745903677019,470.0,0.00038356,30]
[359307973,1745903678670,22816.39,0.00038356,30]
[359307974,1745903679061,470.0,0.00038356,30]
[359307975,1745903681465,470.0,0.00038356,30]
[359307976,1745903683695,470.0,0.00038356,30]
[359307977,1745903684745,554.27,0.00038356,30]
[359307978,1745903686319,470.0,0.00038356,30]
[359307979,1745903687286,536.43,0.00038356,30]
[359307980,1745903688062,500.0,0.00038356,30]
[359307981,1745903690315,534.84,0.00038356,30]
[359307982,1745903690374,470.0,0.00038356,30]
[359307983,1745903695692,9294.97,0.00038356,30]
[359307984,1745903697013,442.19,0.00038356,30]
[359307985,1745903697158,1444.57,0.00038356,30]
[359307986,1745903698953,470.0,0.00038356,30]
[359307987,1745903700308,638.33,0.00038356,30]
[359307988,1745903702069,470.0,0.00038356,30]
[359307989,1745903703346,652.93,0.00038356,30]
[359307990,1745903704354,470.0,0.00038356,30]
[359307991,1745903704457,618.06,0.00038356,30]
[359307992,1745903706007,470.0,0.00038356,30]
[359307993,1745903706218,470.0,0.00038356,30]
[359307994,1745903706472,1426.72,0.00038356,30]
[359307995,1745903707327,400.0,0.00038356,30]
[359307996,1745903711053,470.0,0.00038356,30]
[359307997,1745903711789,530.29,0.00038356,30]
[359307998,1745903712423,470.0,0.00038356,30]
[359307999,1745903714795,1075.96,0.00038356,30]
[359308000,1745903714854,470.0,0.00038356,30]
[359308001,1745903715929,470.0,0.00038356,30]
[359308002,1745903716751,470.0,0.00038356,30]
[359308003,1745903719419,470.0,0.00038356,30]
[359308004,1745903719984,470.0,0.00038356,30]
[359308005,1745903721045,470.0,0.00038356,30]
[359308006,1745903721396,470.0,0.00038356,30]
[359308007,1745903722061,470.0,0.00038356,30]
[359308008,1745903725898,4179.21,0.00038356,30]
[359308009,1745903727671,470.0,0.00038356,30]
[359308010,1745903731209,470.0,0.00038356,30]
[359308011,1745903731606,772.58,0.00038356,30]
[359308012,1745903735890,426.13674652,0.00038356,30]
[359308013,1745903737466,986.61,0.00038356,30]
[359308014,1745903738941,400.0,0.00038356,30]
[359308015,1745903741833,401.0,0.00038356,30]
[359308016,1745903743912,507.98,0.00038356,30]
[359308017,1745903746012,1130.41,0.00038356,30]
[359308018,1745903746554,658.12,0.00038356,30]
[359308019,1745903746610,1051.08,0.00038356,30]
[359308020,1745903748693,470.0,0.00038356,30]
[359308021,1745903749245,3083.55,0.00038356,30]
[359308022,1745903752719,559.36,0.00038356,30]
[359308023,1745903754633,470.0,0.00038356,30]
[359308024,1745903754776,993.54,0.00038356,30]
[359308025,1745903756042,470.0,0.00038356,30]
[359308026,1745903760384,470.0,0.00038356,30]
[359308027,1745903761798,470.0,0.00038356,30]
[359308028,1745903763879,470.0,0.00038356,30]
[359308029,1745903764617,6692.79,0.00038356,30]
[359308030,1745903767099,540.0,0.00038356,30]
[359308031,1745903772528,1462.08,0.00038356,30]
[359308032,1745903772935,470.0,0.00038356,30]
[359308033,1745903773969,470.0,0.00038356,30]
[359308034,1745903777248,595.56,0.00038356,30]
[359308035,1745903780489,470.0,0.00038356,30]
[359308036,1745903782518,812.16,0.00038356,30]
[359308037,1745903782591,470.0,0.00038356,30]
[359308038,1745903786398,470.0,0.00038356,30]
[359308039,1745903786661,562.8,0.00038356,30]
[359308040,1745903793111,470.0,0.00038356,30]
[359308041,1745903795092,507.88,0.00038356,30]
[359308042,1745903796234,470.0,0.00038356,30]
[359308043,1745903796406,470.0,0.00038356,30]
[359308044,1745903796705,470.0,0.00038356,30]
[359308045,1745903799333,994.12,0.00038356,30]
[359308046,1745903799715,496.52,0.00038356,30]
[359308047,1745903800381,470.0,0.00038356,30]
[359308048,1745903800557,470.0,0.00038356,30]
[359308049,1745903800808,470.0,0.00038356,30]
[359308050,1745903802599,470.0,0.00038356,30]
[359308051,1745903804542,1221.22,0.00038356,30]
[359308052,1745903805522,470.0,0.00038356,30]
[359308053,1745903807913,2200.32,0.00038356,30]
[359308054,1745903807972,909.24,0.00038356,30]
[359308055,1745903808057,715.26,0.00038356,30]
[359308056,1745903808959,581.42,0.00038356,30]
[359308057,1745903814439,470.0,0.00038356,30]
[359308058,1745903815928,470.0,0.00038356,30]
[359308059,1745903819367,470.0,0.00038356,30]
[359308060,1745903822752,470.0,0.00038356,30]
[359308061,1745903823521,470.0,0.00038356,30]
[359308062,1745903824035,470.0,0.00038356,30]
[359308063,1745903824137,1238.0,0.00038356,30]
[359308064,1745903824956,816.85,0.00038356,30]
[359308065,1745903826253,687.13,0.00038356,30]
[359308066,1745903832188,470.0,0.00038356,30]
[359308067,1745903833135,470.0,0.00038356,30]
[359308068,1745903834394,1360.4,0.00038356,30]
[359308069,1745903835461,470.0,0.00038356,30]
[359308070,1745903836821,966.28,0.00038356,30]
[359308071,1745903842005,470.0,0.00038356,30]
[359308072,1745903842566,958.17,0.00038356,30]
[359308073,1745903848118,723.28,0.00038356,30]
[359308074,1745903848999,1318.6,0.00038356,30]
[359308075,1745903850366,550.16,0.00038356,30]
[359308076,1745903852720,470.0,0.00038356,30]
[359308077,1745903853537,470.0,0.00038356,30]
[359308078,1745903857394,470.0,0.00038356,30]
[359308079,1745903858063,470.0,0.00038356,30]
[359308080,1745903858551,470.0,0.00038356,30]
[359308081,1745903858626,470.0,0.00038356,30]
[359308082,1745903864522,470.0,0.00038356,30]
[359308083,1745903865551,470.0,0.00038356,30]
[359308084,1745903866997,529.01,0.00038356,30]
[359308085,1745903868152,636.95,0.00038356,30]
[359308086,1745903870339,470.0,0.00038356,30]
[359308087,1745903873563,578.34,0.00038356,30]
[359308088,1745903877164,657.09,0.00038356,30]
[359308089,1745903878983,548.33,0.00038356,30]
[359308090,1745903883211,470.0,0.00038356,30]
[359308091,1745903884691,324.88391,0.0003822,63]
[359308092,1745903886317,861.71,0.00038356,30]
[359308093,1745903889719,470.0,0.00038356,30]
[359308094,1745903892437,470.0,0.00038356,30]
[359308095,1745903895326,470.0,0.00038356,30]
[359308096,1745903896642,1779.4,0.00038356,30]
[359308097,1745903898238,526.02,0.00038356,30]
[359308098,1745903899817,470.0,0.00038356,30]
[359308099,1745903903655,542.61,0.00038356,30]
[359308100,1745903904497,1367.27,0.00038356,30]
[359308101,1745903905068,470.0,0.00038356,30]
[359308102,1745903908010,470.0,0.00038356,30]
[359308103,1745903908207,470.0,0.00038356,30]
[359308104,1745903909583,166.03,0.00035256,30]
[359308105,1745903910349,1879.656,0.00037652,49]
[359308106,1745903910496,166.957,0.00037652,49]
[359308107,1745903910608,470.0,0.00038356,30]
[359308108,1745903911866,470.0,0.00038356,30]
[359308109,1745903912356,470.0,0.00038356,30]
[359308110,1745903915884,470.0,0.00038356,30]
[359308111,1745903916014,470.0,0.00038356,30]
[359308112,1745903917750,535.9,0.00038356,30]
[359308113,1745903920271,4005.07,0.00038356,30]
[359308114,1745903922601,514.08,0.00038356,30]
[359308115,1745903928424,593.56,0.00038356,30]
[359308116,1745903930412,8907.68,0.00038356,30]
[359308117,1745903936914,470.0,0.00038356,30]
[359308118,1745903937837,470.0,0.00038356,30]
[359308119,1745903942684,519.6,0.00038356,30]
[359308120,1745903944062,470.0,0.00038356,30]
[359308121,1745903947489,470.0,0.00038356,30]
[359308122,1745903948431,470.0,0.00038356,30]
[359308123,1745903950243,508.19,0.00038356,30]
[359308124,1745903951997,470.0,0.00038356,30]
[359308125,1745903953153,470.0,0.00038356,30]
[359308126,1745903963249,470.0,0.00038356,30]
[359308127,1745903969716,664.32,0.00038356,30]
[359308128,1745903972053,945.5,0.00038356,30]
[359308129,1745903972372,206.0,0.00038,30]
[359308130,1745903972770,470.0,0.00038356,30]
[359308131,1745903974443,470.0,0.00038356,30]
[359308132,1745903978221,470.0,0.00038356,30]
[359308133,1745903978438,486.81,0.00038356,30]
[359308134,1745903978499,470.0,0.00038356,30]
[359308135,1745903982982,2955.06,0.00038356,30]
[359308136,1745903983571,500.0,0.00038356,30]
[359308137,1745903985763,1538.06,0.00038356,30]
[359308138,1745903986174,489.71,0.00038356,30]
[359308139,1745903986235,536.06,0.00038356,30]
[359308140,1745903989612,470.0,0.00038356,30]
[359308141,1745903992744,500.0,0.00038356,30]
[359308142,1745903993405,470.0,0.00038356,30]
[359308143,1745903996923,6413.92,0.00038356,30]
[359308144,1745904002539,630.7,0.00038356,30]
[359308145,1745904003981,470.0,0.00038356,30]
[359308146,1745904005514,470.0,0.00038356,30]
[359308147,1745904010608,470.0,0.00038356,30]
[359308148,1745904010751,532.73,0.00038356,30]
[359308149,1745904013503,952.14,0.00038356,30]
[359308150,1745904019330,470.0,0.00038356,30]
[359308151,1745904019694,662.75150682,0.00038356,30]
[359308152,1745904020059,566.4,0.00038356,30]
[359308153,1745904025679,470.0,0.00038356,30]
[359308154,1745904025802,470.0,0.00038356,30]
[359308155,1745904029572,470.0,0.00038356,30]
[359308156,1745904030961,1146.2,0.00038356,30]
[359308157,1745904033811,157.0,0.00038356,30]
[359308158,1745904033872,1011.61,0.00038356,30]
[359308159,1745904034958,422.21970952,0.00038356,30]
[359308160,1745904038524,470.0,0.00038356,30]
[359308161,1745904038591,475.83,0.00038356,30]
[359308162,1745904042483,778.32,0.00038356,30]
[359308163,1745904042694,1170.33,0.00038356,30]
[359308164,1745904043528,470.0,0.00038356,30]
[359308165,1745904047742,2108.64,0.00038356,30]
[359308166,1745904047981,470.0,0.00038356,30]
[359308167,1745904048758,470.0,0.00038356,30]
[359308168,1745904053883,601.98189765,0.00038356,30]
[359308169,1745904055088,200.0,0.00038356,30]
[359308170,1745904059788,952.7,0.00038356,30]
[359308171,1745904059904,662.3,0.00038356,30]
[359308172,1745904060345,470.0,0.00038356,30]
[359308173,1745904061721,470.0,0.00038356,30]
[359308174,1745904062770,470.0,0.00038356,30]
[359308175,1745904066409,782.81,0.00038356,30]
[359308176,1745904067369,871.36,0.00038356,30]
[359308177,1745904067650,470.0,0.00038356,30]
[359308178,1745904073038,470.0,0.00038356,30]
[359308179,1745904075804,349.99503571,0.00038356,30]
[359308180,1745904076474,687.57,0.00038356,30]
[359308181,1745904077911,969.14,0.00038356,30]
[359308182,1745904081604,470.0,0.00038356,30]
[359308183,1745904082817,1112.08,0.00038356,30]
[359308184,1745904083307,470.0,0.00038356,30]
[359308185,1745904084545,470.0,0.00038356,30]
[359308186,1745904085903,1263.66,0.00038356,30]
[359308187,1745904087721,574.68,0.00038356,30]
[359308188,1745904094896,470.0,0.00038356,30]
[359308189,1745904097857,470.0,0.00038356,30]
[359308190,1745904098907,1303.71,0.00038356,30]
[359308191,1745904100293,1518.8851306,0.00038356,30]
[359308192,1745904101691,534.42,0.00038356,30]
[359308193,1745904107035,918.24,0.00038356,30]
[359308194,1745904107576,610.41,0.00038356,30]
[359308195,1745904107746,506.96,0.00038356,30]
[359308196,1745904112456,470.0,0.00038356,30]
[359308197,1745904115047,470.0,0.00038356,30]
[359308198,1745904115123,527.24,0.00038356,30]
[359308199,1745904116915,525.49,0.00038356,30]
[359308200,1745904119900,470.0,0.00038356,30]
[359308201,1745904119993,470.0,0.00038356,30]
[359308202,1745904120054,470.0,0.00038356,30]
[359308203,1745904122544,825.81,0.00038356,30]
[359308204,1745904122885,470.0,0.00038356,30]
[359308205,1745904125397,470.0,0.00038356,30]
[359308206,1745904127606,582.27,0.00038356,30]
[359308207,1745904131419,470.0,0.00038356,30]
[359308208,1745904132043,470.0,0.00038356,30]
[359308209,1745904137972,470.0,0.00038356,30]
[359308210,1745904138232,642.64,0.00038356,30]
[359308211,1745904140332,520.0,0.00038356,30]
[359308212,1745904140787,629.71,0.00038356,30]
[359308213,1745904142150,473.79,0.00038356,30]
[359308214,1745904144680,220.61228838,0.00038356,30]
[359308215,1745904145215,470.0,0.00038356,30]
[359308216,1745904149778,940.0,0.00038356,30]
[359308217,1745904150412,528.02,0.00038356,30]
[359308218,1745904150797,470.0,0.00038356,30]
[359308219,1745904151724,470.0,0.00038356,30]
[359308220,1745904152110,21865.71,0.00038356,30]
[359308221,1745904152580,470.0,0.00038356,30]
[359308222,1745904157547,492.66,0.00038356,30]
[359308223,1745904159875,470.0,0.00038356,30]
[359308224,1745904160041,470.0,0.00038356,30]
[359308225,1745904165467,568.83,0.00038356,30]
[359308226,1745904166265,8536.53,0.00038356,30]
[359308227,1745904169330,541.05,0.00038356,30]
[359308228,1745904169719,513.57,0.00038356,30]
[359308229,1745904170151,1705.26,0.00038356,30]
[359308230,1745904173345,470.0,0.00038356,30]
[359308231,1745904178516,1310.3,0.00038356,30]
[359308232,1745904180122,470.0,0.00038356,30]
[359308233,1745904182609,470.0,0.00038356,30]
[359308234,1745904183522,470.0,0.00038356,30]
[359308235,1745904184482,1011.54,0.00038356,30]
[359308236,1745904186473,470.0,0.00038356,30]
[359308237,1745904186847,470.0,0.00038356,30]
[359308238,1745904194644,3838.2,0.00038356,30]
[359308239,1745904195048,470.0,0.00038356,30]
[359308240,1745904197127,999.0,0.00038356,30]
[359308241,1745904203413,581.41,0.00038356,30]
[359308242,1745904212177,470.0,0.00038356,30]
[359308243,1745904212778,470.0,0.00038356,30]
[359308244,1745904212831,567.99,0.00038356,30]
[359308245,1745904212900,470.0,0.00038356,30]
[359308246,1745904219020,470.0,0.00038356,30]
[359308247,1745904219368,470.0,0.00038356,30]
[359308248,1745904220967,470.0,0.00038356,30]
[359308249,1745904222739,470.0,0.00038356,30]
[359308250,1745904228451,6146.67,0.00038356,30]
[359308251,1745904231687,470.0,0.00038356,30]
[359308252,1745904236434,470.0,0.00038356,30]
[359308253,1745904238765,470.0,0.00038356,30]
[359308254,1745904242034,396.82283,0.0003822,63]
[359308255,1745904243605,873.76,0.00038356,30]
[359308256,1745904244088,604.42,0.00038356,30]
[359308257,1745904252591,470.0,0.00038356,30]
[359308258,1745904252859,912.47,0.00038356,30]
[359308259,1745904256893,470.0,0.00038356,30]
[359308260,1745904260761,470.0,0.00038356,30]
[359308261,1745904264404,470.0,0.00038356,30]
[359308262,1745904268298,470.0,0.00038356,30]
[359308263,1745904268451,1121.57,0.00038356,30]
[359308264,1745904268824,386.31425341,0.00038356,30]
[359308265,1745904270460,470.0,0.00038356,30]
[359308266,1745904273539,1401.16,0.00038356,30]
[359308268,1745904276811,470.0,0.00038356,30]
[359308269,1745904276872,470.0,0.00038356,30]
[359308270,1745904280926,969.46,0.00038356,30]
[359308271,1745904283178,470.0,0.00038356,30]
[359308272,1745904286107,470.0,0.00038356,30]
[359308273,1745904289939,745.89,0.00038356,30]
[359308274,1745904293359,470.0,0.00038356,30]
[359308275,1745904296616,470.0,0.00038356,30]
[359308276,1745904299921,470.0,0.00038356,30]
[359308277,1745904301098,470.0,0.00038356,30]
[359308278,1745904306814,913.0,0.00038356,30]
[359308279,1745904311273,1211.01,0.00038356,30]
[359308280,1745904315616,835.05,0.00038356,30]
[359308281,1745904325897,470.0,0.00038356,30]
[359308282,1745904326366,769.06291702,0.00036,60]
[359308283,1745904327581,429.51278785,0.00023,120]
[359308284,1745904328956,1065.75,0.00038356,30]
[359308285,1745904331346,584.98,0.00038356,30]
[359308286,1745904331735,641.08411622,0.0002,120]
[359308287,1745904332485,470.0,0.00038356,30]
[359308288,1745904333497,837.26262705,0.00037808,60]
[359308289,1745904336946,470.0,0.00038356,30]
[359308290,1745904338982,470.0,0.00038356,30]
[359308291,1745904340056,503.59,0.00038356,30]
[359308292,1745904344741,1249.39,0.00038356,30]
[359308293,1745904348003,470.0,0.00038356,30]
[359308294,1745904351453,470.0,0.00038356,30]
[359308295,1745904352963,879.89,0.00038356,30]
[359308296,1745904353426,879.98,0.00038356,30]
[359308297,1745904359266,470.0,0.00038356,30]
[359308298,1745904359380,470.0,0.00038356,30]
[359308299,1745904361815,505.27,0.00038356,30]
[359308300,1745904362597,1450.0,8e-05,2]
[359308301,1745904362620,2000.0,8e-05,2]
[359308302,1745904362643,553.79101885,8e-05,2]
[359308303,1745904363669,470.0,0.00038356,30]
[359308304,1745904364222,470.0,0.00038356,30]
[359308305,1745904366258,470.0,0.00038356,30]
[359308306,1745904369441,183.28,0.00032877,30]
[359308307,1745904373406,470.0,0.00038356,30]
[359308308,1745904374612,470.0,0.00038356,30]
[359308309,1745904380767,500.0,0.00038356,120]
[359308310,1745904383114,470.0,0.00038356,30]
[359308311,1745904385534,470.0,0.00038356,30]
[359308312,1745904386053,470.0,0.00038356,30]
[359308313,1745904390154,470.0,0.00038356,30]
[359308314,1745904390343,603.48,0.00038356,30]
[359308315,1745904392968,470.0,0.00038356,30]
[359308316,1745904393150,470.0,0.00038356,30]
[359308317,1745904395269,480.73,0.00038356,30]
[359308318,1745904398990,20954.63,0.00038356,30]
[359308319,1745904401479,470.0,0.00038356,30]
[359308320,1745904405605,1630.33,0.00038356,30]
[359308321,1745904411347,470.0,0.00038356,30]
[359308322,1745904416686,470.0,0.00038356,30]
[359308323,1745904416777,1634.21,0.00038356,30]
[359308324,1745904424843,1255.7,0.00038356,30]
[359308325,1745904425319,470.0,0.00038356,30]
[359308326,1745904426469,500.0,0.00038356,30]
[359308327,1745904432421,636.64,0.00038356,30]
[359308328,1745904433075,470.0,0.00038356,30]
[359308329,1745904433497,969.39,0.00038356,30]
[359308330,1745904440172,470.0,0.00038356,30]
[359308331,1745904440613,470.0,0.00038356,30]
[359308332,1745904443063,470.0,0.00038356,30]
[359308333,1745904443564,3678.27,0.00038356,30]
[359308334,1745904446217,470.0,0.00038356,30]
[359308335,1745904448651,470.0,0.00038356,30]
[359308336,1745904449565,470.0,0.00038356,30]
[359308337,1745904457337,415.35661463,0.00038356,30]
[359308338,1745904457491,470.0,0.00038356,30]
[359308339,1745904459289,470.0,0.00038356,30]
[359308340,1745904460687,168.460655,0.00037589,30]
[359308341,1745904463843,470.0,0.00038356,30]
[359308342,1745904463899,470.0,0.00038356,30]
[359308343,1745904466955,250.0,0.00017,2]
[359308344,1745904467917,470.0,0.00038356,30]
[359308345,1745904468029,300.0,0.00019,2]
[359308346,1745904475758,896.20898115,0.0001,2]
[359308347,1745904475779,1120.98659436,0.0001,2]
[359308348,1745904486007,470.0,0.00038356,30]
[359308349,1745904488561,470.0,0.00038356,30]
[359308350,1745904494539,470.0,0.00038356,30]
[359308351,1745904494907,470.0,0.00038356,30]
[359308352,1745904502650,1286.65,0.00038356,30]
[359308353,1745904504231,470.0,0.00038356,30]
[359308354,1745904505245,470.0,0.00038356,30]
[359308355,1745904506900,470.0,0.00038356,30]
[359308356,1745904514124,470.0,0.00038356,30]
[359308357,1745904515586,196.0,0.000383,30]
[359308359,1745904517469,470.0,0.00038356,30]
[359308360,1745904517946,470.0,0.00038356,30]
[359308361,1745904518204,470.0,0.00038356,30]
[359308362,1745904522223,470.0,0.00038356,30]
[359308363,1745904522531,196.0,0.000383,31]
[359308364,1745904523493,470.0,0.00038356,30]
[359308366,1745904525088,470.0,0.00038356,30]
[359308367,1745904525173,470.0,0.00038356,30]
[359308368,1745904527762,534.47,0.00038356,30]
[359308369,1745904528891,790.99,0.00038356,30]
[359308370,1745904533963,470.0,0.00038356,30]
[359308371,1745904539292,470.0,0.00038356,30]
[359308372,1745904539349,196.0,0.000383,33]
[359308373,1745904542715,725.33,0.00038356,30]
[359308374,1745904543135,480.13,0.00038356,30]
[359308375,1745904544709,196.0,0.000383,35]
[359308376,1745904550049,470.0,0.00038356,30]
[359308377,1745904551462,555.87,0.00038356,30]
[359308378,1745904551747,636.21,0.00038356,30]
[359308379,1745904557965,470.0,0.00038356,30]
[359308380,1745904558025,470.0,0.00038356,30]
[359308381,1745904561074,495.01,0.00038356,30]
[359308382,1745904561255,11605.0,0.00038,120]
[359308383,1745904561612,945.58,0.00038356,30]
[359308384,1745904563500,542.66,0.00038356,30]
[359308385,1745904569148,606.63,0.00038356,30]
[359308386,1745904569931,511.4,0.00038356,30]
[359308387,1745904571346,478.22,0.00038356,30]
[359308388,1745904577166,470.0,0.00038356,30]
[359308389,1745904578375,470.0,0.00038356,30]
[359308390,1745904589648,576.9,0.00038356,30]
[359308391,1745904592365,746.38,0.00038356,30]
[359308392,1745904593894,1233.43,0.00038356,30]
[359308393,1745904595250,411.43759518,0.00038356,30]
[359308394,1745904597163,-221.23682881,0.0001991,2]
[359308395,1745904597186,-196.0,0.0001999,2]
[359308396,1745904597208,-196.0,0.0001999,2]
[359308397,1745904597231,-196.0,0.0001999,2]
[359308398,1745904597254,-1190.76317119,0.0002,2]
[359308403,1745904598165,-2000.0,0.0002,2]
[359308404,1745904598863,-2000.0,0.0002,2]
[359308405,1745904599679,-2000.0,0.0002,2]
[359308406,1745904600180,-2000.0,0.0002,2]
[359308407,1745904601076,-2000.0,0.0002,2]
[359308408,1745904601705,470.0,0.00038356,30]
[359308409,1745904601857,-2000.0,0.0002,2]
[359308410,1745904602510,-196.0,0.0001999,2]
[359308411,1745904602537,-1804.0,0.0002,2]
[359308412,1745904602788,470.0,0.00038356,30]
[359308413,1745904603359,-2000.0,0.0002,2]
[359308414,1745904604256,-2000.0,0.0002,2]
[359308415,1745904605176,-2000.0,0.0002,2]
[359308416,1745904605879,-2000.0,0.0002,2]
[359308417,1745904606606,-2000.0,0.0002,2]
[359308418,1745904607082,470.0,0.00038356,30]
[359308419,1745904607177,470.0,0.00038356,30]
[359308420,1745904607610,-2000.0,0.0002,2]
[359308421,1745904607791,575.26,0.00038356,30]
[359308422,1745904608421,-196.0,0.0001999,2]
[359308423,1745904608445,-1804.0,0.0002,2]
[359308424,1745904608853,470.0,0.00038356,30]
[359308425,1745904609234,707.97,0.00038356,30]
[359308426,1745904612615,470.0,0.00038356,30]
[359308427,1745904614050,470.0,0.00038356,30]
[359308428,1745904617075,910.48,0.00038356,30]
[359308429,1745904618949,470.0,0.00038356,30]
[359308430,1745904619663,538.2,0.00038356,30]
[359308431,1745904620014,470.0,0.00038356,30]
[359308432,1745904620262,-196.0,0.0001999,2]
[359308433,1745904620289,-1804.0,0.0002,2]
[359308434,1745904622135,-2000.0,0.0002,2]
[359308435,1745904622670,196.0,0.000383,45]
[359308436,1745904622798,-2000.0,0.0002,2]
[359308437,1745904622855,470.0,0.00038356,30]
[359308438,1745904623662,-2000.0,0.0002,2]
[359308439,1745904624977,-2000.0,0.0002,2]
[359308440,1745904625574,-2000.0,0.0002,2]
[359308441,1745904625842,2680.65,0.00038356,30]
[359308442,1745904626354,-2000.0,0.0002,2]
[359308443,1745904626587,434.3220474,0.00038356,30]
[359308444,1745904627831,-2000.0,0.0002,2]
[359308445,1745904628123,-2000.0,0.0002,2]
[359308446,1745904628319,470.0,0.00038356,30]